fUST/lending_fUST_20250923
["ID","MTS","AMOUNT","RATE_DAILY","PERIOD"]
[387183704,1758618494297,-331.9797778,0.00018988,2]
[387183705,1758618497444,-354.94665699,0.00018988,2]
[387183706,1758618499689,-288.5193359,0.00018988,2]
[387183707,1758618501813,-197.70655228,0.00018988,2]
[387183708,1758618505087,-199.37744811,0.00018988,2]
[387183709,1758618508309,-181.5589787,0.00018988,2]
[387183710,1758618512146,-9194.84567685,0.00018988,2]
[387183711,1758618512200,-10000.01,0.00018988,2]
[387183712,1758618512213,-10000.01,0.00018988,2]
[387183713,1758618513288,-375.96904795,0.00018988,2]
[387183719,1758618632462,-1251.28635666,0.00018974,2]
[387183720,1758618632471,-300.0,0.00018987,2]
[387183721,1758618632481,-300.0,0.00018987,2]
[387183722,1758618632491,-300.0,0.00018987,2]
[387183723,1758618632501,-1200.0,0.00018987,2]
[387183724,1758618632511,-10091.79847545,0.00018988,2]
[387183725,1758618632521,-100000.0,0.0001899,2]
[387183726,1758618632531,-500.0,0.00019,2]
[387183727,1758618632540,-188.60871487,0.00019004,2]
[387183728,1758618632550,-5347.4802393,0.00019034,2]
[387183729,1758618632560,-2721.9874875,0.00019034,2]
[387183731,1758618632569,-600.0,0.00019048,2]
[387183732,1758618632579,-1764.47,0.00019054,3]
[387183734,1758618632588,-882.23,0.00019054,3]
[387183736,1758618632598,-151.0,0.00019063,2]
[387183738,1758618632607,-181.08010149,0.00019063,2]
[387183739,1758618632616,-228.68710182,0.00019064,2]
[387183741,1758618632625,-364.963845,0.00019064,2]
[387183743,1758618632635,-364.963845,0.00019064,2]
[387183744,1758618632644,-364.963845,0.00019064,2]
[387183745,1758618632653,-364.963845,0.00019064,2]
[387183747,1758618632663,-151.0,0.00019064,2]
[387183748,1758618632672,-151.0,0.00019064,2]
[387183749,1758618632681,-241.943694,0.00019064,2]
[387183750,1758618632691,-151.0,0.00019064,2]
[387183751,1758618632700,-241.943694,0.00019064,2]
[387183752,1758618632709,-241.943694,0.00019064,2]
[387183753,1758618632719,-241.943694,0.00019064,2]
[387183754,1758618632728,-151.0,0.00019064,2]
[387183755,1758618632737,-200.727566,0.00019064,2]
[387183756,1758618632747,-1298.051356,0.00019064,2]
[387183757,1758618632757,-1298.051356,0.00019064,2]
[387183758,1758618632767,-1298.051356,0.00019064,2]
[387183759,1758618632778,-151.0,0.00019064,2]
[387183760,1758618632787,-213.644851,0.00019064,2]
[387183761,1758618632797,-151.0,0.00019064,2]
[387183762,1758618632807,-1298.051356,0.00019064,2]
[387183763,1758618632818,-219.167749,0.00019064,2]
[387183764,1758618632828,-151.0,0.00019064,2]
[387183765,1758618632839,-151.0,0.00019064,2]
[387183766,1758618632849,-151.0,0.00019064,2]
[387183767,1758618632859,-151.0,0.00019064,2]
[387183768,1758618632869,-151.0,0.00019064,2]
[387183769,1758618632879,-151.0,0.00019064,2]
[387183770,1758618632889,-151.0,0.00019064,2]
[387183771,1758618632899,-512.975368,0.00019064,2]
[387183772,1758618632909,-151.0,0.00019064,2]
[387183773,1758618632919,-512.975368,0.00019064,2]
[387183774,1758618632929,-151.0,0.00019064,2]
[387183775,1758618632939,-512.975368,0.00019064,2]
[387183776,1758618632948,-512.975368,0.00019064,2]
[387183777,1758618632959,-151.0,0.00019064,2]
[387183778,1758618632969,-151.0,0.00019064,2]
[387183779,1758618632979,-151.0,0.00019064,2]
[387183780,1758618632988,-151.0,0.00019064,2]
[387183781,1758618632997,-151.0,0.00019064,2]
[387183782,1758618633006,-151.0,0.00019064,2]
[387183783,1758618633016,-151.0,0.00019064,2]
[387183784,1758618633026,-151.0,0.00019064,2]
[387183785,1758618633036,-346.46961,0.00019064,2]
[387183786,1758618633047,-182.442082,0.00019064,2]
[387183787,1758618633056,-173.168232,0.00019064,2]
[387183788,1758618633066,-346.46961,0.00019064,2]
[387183789,1758618633076,-346.46961,0.00019064,2]
[387183790,1758618633087,-346.46961,0.00019064,2]
[387183791,1758618633097,-11084.11125697,0.00019064,2]
[387183792,1758618633111,-4065.57278773,0.00019064,2]
[387183818,1758618638256,-4586.82523977,0.00018974,2]
[387183864,1758618640178,-732.86360243,0.00018974,2]
[387183909,1758618640601,-79.95552673,0.00018974,2]
[387183966,1758618643231,-466.21150053,0.000189,2]
[387183967,1758618643243,-140.31494806,0.000189,2]
[387183968,1758618643252,-395.67663874,0.00018974,2]
[387183969,1758618643389,-706.72393842,0.00018974,2]
[387184261,1758618646261,-546.12182628,0.00018974,2]
[387184316,1758618724066,-152.69957321,0.00018068,2]
[387184317,1758618728362,-68.63512579,0.00018068,2]
[387184319,1758618784416,-168.0,0.00018018,2]
[387184320,1758618788152,-112.5549906,0.00018018,2]
[387184321,1758618788173,-140.08762253,0.000181,2]
[387184322,1758618790824,-331.10629886,0.000181,2]
[387184323,1758618793978,-28.80607861,0.000181,2]
[387184325,1758618832422,-10000.01,0.0001889,2]
[387184326,1758618832684,-10000.01,0.0001889,2]
[387184327,1758618832833,-10000.01,0.0001889,2]
[387184328,1758618833044,-10000.01,0.0001889,2]
[387184329,1758618833109,-10000.01,0.0001889,2]
[387184330,1758618833238,-10000.01,0.0001889,2]
[387184333,1758619162339,311.11519096,0.00029293,60]
[387184334,1758619203796,-183.87580341,0.00018018,2]
[387184335,1758619206401,-302.29987676,0.00018018,2]
[387184336,1758619210205,-185.71069349,0.00018018,2]
[387184337,1758619212390,-159.9079663,0.00018018,2]
[387184338,1758619217005,-168.20566004,0.00018018,2]
[387184339,1758619263162,-168.0,0.00018661,2]
[387184340,1758619263191,-500.0,0.000187,2]
[387184341,1758619263221,-3062.65731308,0.0001889,2]
[387184342,1758619263286,-2538.69537384,0.0001889,2]
[387184343,1758619263382,-1200.0,0.00018928,2]
[387184344,1758619263411,-300.0,0.00018928,2]
[387184345,1758619263441,-2372.0630283,0.00018929,2]
[387184346,1758619263508,-2255.8839434,0.00018929,2]
[387184373,1758619323236,-934.5226995,0.00018929,2]
[387184374,1758619323264,-580.12013884,0.00018935,2]
[387184375,1758619323294,-1200.0,0.00018972,2]
[387184376,1758619323323,-300.0,0.00018973,2]
[387184377,1758619325195,-176.04497273,0.00018974,2]
[387184378,1758619327986,-185.05032913,0.00018974,2]
[387184379,1758619331196,-268.35430913,0.00018974,2]
[387184380,1758619334352,-291.45560762,0.00018974,2]
[387184381,1758619336447,-438.90918461,0.00018974,2]
[387184382,1758619340343,768.0,0.00018973,2]
[387184383,1758619340486,-463.29237557,0.00018974,2]
[387184384,1758619343072,-248.47899204,0.00018974,2]
[387184385,1758619344735,-343.21585672,0.00018974,2]
[387184387,1758619348658,-165.46816647,0.00018974,2]
[387184389,1758619351514,-357.87296188,0.00018974,2]
[387184390,1758619354049,295.10438168,0.00018973,2]
[387184391,1758619354103,-247.08320992,0.00018974,2]
[387184392,1758619356840,-153.53110897,0.00018974,2]
[387184393,1758619358705,-361.30042679,0.00018974,2]
[387184394,1758619364204,-169.45878191,0.00018974,2]
[387184395,1758619365743,386.74675923,0.00018973,2]
[387184396,1758619366367,-231.06017,0.00018974,2]
[387184399,1758619370514,-696.04482566,0.00018974,2]
[387184400,1758619372701,-179.9640072,0.00018974,2]
[387184401,1758619374863,-263.95162424,0.00018974,2]
[387184402,1758619377980,-204.25661415,0.00018974,2]
[387184403,1758619380332,-195.39741264,0.00018974,2]
[387184404,1758619382736,-195.11545431,0.00018974,2]
[387184405,1758619382874,300.0,0.00018973,2]
[387184406,1758619388336,-187.55991962,0.00018974,2]
[387184407,1758619392430,-194.09381965,0.00018974,2]
[387184408,1758619393293,-8250.15885909,0.00018974,2]
[387184409,1758619393380,-10000.01,0.00018974,2]
[387184410,1758619393515,-10000.01,0.00018974,2]
[387184411,1758619393648,-10000.01,0.00018974,2]
[387184412,1758619393808,-10000.01,0.00018974,2]
[387184413,1758619393947,-10000.01,0.00018974,2]
[387184414,1758619394069,-339.11241727,0.00018974,2]
[387184415,1758619394108,-10000.01,0.00018974,2]
[387184416,1758619394235,-10000.01,0.00018974,2]
[387184417,1758619394356,-10000.01,0.00018974,2]
[387184418,1758619394474,-823.66278885,0.00018974,2]
[387184419,1758619394497,-8352.6844223,0.00018974,2]
[387184420,1758619403309,-515.96939604,0.00018977,2]
[387184421,1758619403330,-8968.07120792,0.00018977,2]
[387184422,1758619403416,-3607.568324,0.00018985,2]
[387184423,1758619403443,-1001.02908532,0.00018985,2]
[387184424,1758619403473,-282.81518136,0.00018989,2]
[387184425,1758619403518,-217.18481864,0.00018989,2]
[387184428,1758619505351,-283.5156345,0.00018052,2]
[387184429,1758619505374,-28.30646339,0.000181,2]
[387184431,1758619509535,-185.23960757,0.000181,2]
[387184432,1758619511693,-258.19482268,0.000181,2]
[387184433,1758619518277,-28.25910636,0.000181,2]
[387184447,1758619685659,294.5957409,0.00017981,2]
[387184448,1758619698997,666.0,0.00017981,2]
[387184449,1758619703904,-862.51107621,0.0001889,2]
[387184450,1758619703933,-591.6952345,0.00018968,2]
[387184451,1758619703961,-300.0,0.00018969,2]
[387184452,1758619703990,-300.0,0.00018969,2]
[387184453,1758619704019,-1200.0,0.00018969,2]
[387184454,1758619704047,-1200.0,0.00018969,2]
[387184455,1758619704239,-131.00163768,0.0001897,2]
[387184456,1758619713789,-4967.18009732,0.0001897,2]
[387184457,1758619713829,-65.64980536,0.0001897,2]
[387184458,1758619723832,-1017.31347994,0.0001897,2]
[387184459,1758619723860,-917.83785507,0.00018974,2]
[387184460,1758619723907,-6129.70732998,0.00018978,2]
[387184519,1758619832419,-1459.4194863,0.00018969,2]
[387184521,1758619832429,-72.03050427,0.00018978,2]
[387184523,1758619832440,-5479.18419449,0.00018978,2]
[387184525,1758619832449,-300.0,0.00018988,2]
[387184527,1758619832459,-1200.0,0.00018988,2]
[387184530,1758619832468,-184.08487511,0.00018989,2]
[387184532,1758619832477,-500.0,0.00018989,2]
[387184535,1758619832486,-500.0,0.00018989,2]
[387184539,1758619832496,-644.84226013,0.00018989,2]
[387184541,1758619832505,-500.0,0.00018989,2]
[387184544,1758619832514,-383.01293863,0.00018989,2]
[387184547,1758619832524,-27055.91986643,0.00018989,2]
[387184550,1758619832533,-2276.6219927,0.0001899,2]
[387184553,1758619832548,-1156.2,0.0001899,2]
[387184555,1758619832566,-23123.44938981,0.0001899,2]
[387184662,1758619838359,-16165.21193378,0.0001899,2]
[387184664,1758619838371,-1301.12289125,0.0001899,2]
[387184666,1758619838382,-4456.00643768,0.0001899,2]
[387184667,1758619838393,-963.85330514,0.0001899,2]
[387184668,1758619838405,-1003.90200101,0.0001899,2]
[387185021,1758619895267,-208.02593212,0.00018069,2]
[387185022,1758619897334,-55.50069588,0.00018069,2]
[387185026,1758620079610,300.0,0.0002929,60]
[387185030,1758620144778,1000.0,0.00017992,2]
[387185036,1758620252417,-162.1292252,0.00018208,2]
[387185037,1758620256249,-295.84484268,0.00018208,2]
[387185038,1758620259532,-196.23003166,0.00018208,2]
[387185039,1758620262289,-288.87293284,0.00018208,2]
[387185041,1758620269663,-203.0297112,0.00018208,2]
[387185042,1758620272385,-286.28472791,0.00018208,2]
[387185043,1758620275496,-28.04482189,0.00018208,2]
[387185044,1758620282861,170.21,0.00015485,2]
[387185045,1758620283127,170.21,0.00015485,2]
[387185046,1758620303830,-157.645527,0.00018312,2]
[387185047,1758620303859,-137.86420247,0.00018323,2]
[387185048,1758620307412,-364.71738194,0.00018323,2]
[387185049,1758620312556,-113.48475059,0.00018323,2]
[387185050,1758620312577,-57.21088045,0.00018333,2]
[387185051,1758620316625,-250.66640955,0.00018333,2]
[387185052,1758620316646,-100.19300515,0.00018409,2]
[387185053,1758620319648,-327.68482612,0.00018409,2]
[387185054,1758620321227,-11.24574418,0.00018409,2]
[387185055,1758620321260,-150.62885878,0.00018417,2]
[387185056,1758620323365,-68.93292895,0.00018417,2]
[387185057,1758620347225,2127.4047936,0.00017982,2]
[387185058,1758620403113,156.73599154,0.00017993,2]
[387185059,1758620405455,166.05415538,0.00017993,2]
[387185063,1758620490072,567.031266,0.00017983,2]
[387185065,1758620545237,193.7584977,0.00027397,120]
[387185067,1758620629869,666.0,0.00017989,2]
[387185069,1758620775157,200000.0,0.00029293,60]
[387185114,1758621032675,-168.0,0.00018536,2]
[387185116,1758621032685,-168.0,0.00018567,2]
[387185118,1758621032697,-168.0,0.00018678,2]
[387185120,1758621032707,-168.0,0.00018794,2]
[387185122,1758621032716,-193.11984694,0.000188,2]
[387185124,1758621032725,-377.157641,0.000188,2]
[387185126,1758621032735,-774.96334486,0.00018888,2]
[387185128,1758621032743,-1537.0,0.00018889,2]
[387185130,1758621032752,-1024.8318767,0.00018964,2]
[387185132,1758621032761,-775.87547048,0.00018975,2]
[387185134,1758621032770,-1200.0,0.00018977,2]
[387185136,1758621032779,-1200.0,0.00018984,2]
[387185138,1758621032788,-300.0,0.00018985,2]
[387185139,1758621032796,-300.0,0.00018985,2]
[387185141,1758621032806,-300.0,0.00018985,2]
[387185142,1758621032815,-300.0,0.00018985,2]
[387185144,1758621032824,-50000.0,0.00018986,2]
[387185145,1758621032833,-231.60269639,0.00018988,7]
[387185147,1758621032842,-316.06294904,0.00019,2]
[387185149,1758621032851,-202.03,0.00019064,3]
[387185151,1758621032861,-151.0,0.00019066,2]
[387185152,1758621032870,-181.08010149,0.00019066,2]
[387185153,1758621032879,-332.08,0.00019066,2]
[387185164,1758621032980,-154.08,0.00019066,2]
[387185167,1758621032990,-154.08,0.00019066,2]
[387185169,1758621033002,-154.08,0.00019066,2]
[387185171,1758621033012,-1615.12,0.00019067,3]
[387185173,1758621033021,-807.56,0.00019067,3]
[387185175,1758621033031,-403.78,0.00019067,3]
[387185177,1758621033040,-201.89,0.00019067,3]
[387185179,1758621033049,-207.48930761,0.00019067,3]
[387185181,1758621033061,-398.21069239,0.00019067,3]
[387185183,1758621033072,-387.41604977,0.00019067,2]
[387185184,1758621033082,-617.07806658,0.00019067,2]
[387185185,1758621033092,-500.0,0.00019067,2]
[387185186,1758621033101,-480.09519116,0.00019067,2]
[387185188,1758621033113,-60.73021534,0.00019067,2]
[387185190,1758621033122,-500.0,0.00019067,2]
[387185191,1758621033132,-500.0,0.00019067,2]
[387185192,1758621033141,-500.0,0.00019067,2]
[387185193,1758621033151,-500.0,0.00019067,2]
[387185194,1758621033161,-500.0,0.00019067,2]
[387185196,1758621033170,-500.0,0.00019067,2]
[387185198,1758621033180,-500.0,0.00019067,2]
[387185199,1758621033189,-330.18882966,0.00019067,2]
[387185200,1758621033198,-500.0,0.00019067,2]
[387185201,1758621033208,-227.56442053,0.00019067,2]
[387185202,1758621033228,-272.43557947,0.00019067,2]
[387185203,1758621033237,-500.0,0.00019067,2]
[387185204,1758621033247,-500.0,0.00019067,2]
[387185205,1758621033257,-300.0,0.00019067,2]
[387185206,1758621033267,-500.0,0.00019067,2]
[387185207,1758621033276,-500.0,0.00019067,2]
[387185208,1758621033286,-500.0,0.00019067,2]
[387185209,1758621033296,-500.0,0.00019067,2]
[387185210,1758621033306,-509.29353456,0.00019067,2]
[387185211,1758621033315,-500.0,0.00019067,2]
[387185212,1758621033326,-500.0,0.00019067,2]
[387185213,1758621033336,-648.2750102,0.00019067,2]
[387185214,1758621033346,-500.0,0.00019067,2]
[387185215,1758621033355,-500.0,0.00019067,2]
[387185216,1758621033365,-500.0,0.00019067,2]
[387185217,1758621033375,-500.0,0.00019067,2]
[387185218,1758621033384,-500.0,0.00019067,2]
[387185219,1758621033394,-500.0,0.00019067,2]
[387185220,1758621033404,-529.76942844,0.00019067,2]
[387185221,1758621033414,-500.0,0.00019067,2]
[387185222,1758621033424,-500.0,0.00019067,2]
[387185223,1758621033433,-500.0,0.00019067,2]
[387185224,1758621033444,-500.0,0.00019067,2]
[387185225,1758621033454,-500.0,0.00019067,2]
[387185226,1758621033464,-500.0,0.00019067,2]
[387185227,1758621033474,-500.0,0.00019067,2]
[387185228,1758621033484,-500.0,0.00019067,2]
[387185229,1758621033493,-500.0,0.00019067,2]
[387185230,1758621033504,-500.0,0.00019067,2]
[387185231,1758621033512,-276.70432476,0.00019067,2]
[387185232,1758621033522,-172.81551829,0.00019067,2]
[387185233,1758621033532,-646.09,0.00019068,3]
[387185234,1758621033541,-500.0,0.00019074,2]
[387185235,1758621033551,-151.0,0.00019074,2]
[387185236,1758621033561,-151.0,0.00019074,2]
[387185237,1758621033570,-151.0,0.00019074,2]
[387185238,1758621033580,-151.0,0.00019074,2]
[387185239,1758621033590,-151.0,0.00019074,2]
[387185240,1758621033599,-151.0,0.00019074,2]
[387185241,1758621033609,-151.0,0.00019074,2]
[387185242,1758621033618,-151.0,0.00019074,2]
[387185243,1758621033628,-151.0,0.00019074,2]
[387185244,1758621033637,-151.0,0.00019074,2]
[387185245,1758621033647,-151.0,0.00019074,2]
[387185246,1758621033657,-256.75266,0.00019074,2]
[387185247,1758621033667,-151.0,0.00019074,2]
[387185248,1758621033676,-151.0,0.00019074,2]
[387185249,1758621033686,-151.0,0.00019074,2]
[387185250,1758621033696,-151.0,0.00019074,2]
[387185251,1758621033705,-151.0,0.00019074,2]
[387185252,1758621033715,-151.0,0.00019074,2]
[387185253,1758621033724,-151.0,0.00019074,2]
[387185254,1758621033734,-151.0,0.00019074,2]
[387185255,1758621033743,-151.0,0.00019074,2]
[387185256,1758621033753,-151.0,0.00019074,2]
[387185257,1758621033763,-151.0,0.00019074,2]
[387185258,1758621033772,-151.0,0.00019074,2]
[387185259,1758621033781,-153.145215,0.00019074,2]
[387185260,1758621033791,-151.0,0.00019074,2]
[387185261,1758621033800,-151.0,0.00019074,2]
[387185262,1758621033810,-192.57384,0.00019074,2]
[387185263,1758621033820,-151.0,0.00019074,2]
[387185264,1758621033830,-151.0,0.00019074,2]
[387185265,1758621033839,-151.0,0.00019074,2]
[387185266,1758621033849,-292.018299,0.00019074,2]
[387185267,1758621033858,-292.018299,0.00019074,2]
[387185268,1758621033869,-292.018299,0.00019074,2]
[387185269,1758621033878,-292.018299,0.00019074,2]
[387185270,1758621033888,-151.0,0.00019074,2]
[387185271,1758621033898,-151.0,0.00019074,2]
[387185272,1758621033907,-151.0,0.00019074,2]
[387185273,1758621033917,-196.801002,0.00019074,2]
[387185274,1758621033926,-196.801002,0.00019074,2]
[387185275,1758621033938,-165.756219,0.00019074,2]
[387185276,1758621033950,-196.801002,0.00019074,2]
[387185277,1758621033959,-165.756219,0.00019074,2]
[387185278,1758621033969,-151.0,0.00019074,2]
[387185279,1758621033979,-165.756219,0.00019074,2]
[387185280,1758621033988,-151.0,0.00019074,2]
[387185281,1758621033997,-165.756219,0.00019074,2]
[387185282,1758621034008,-151.0,0.00019074,2]
[387185283,1758621034018,-196.801002,0.00019074,2]
[387185284,1758621034029,-273.108657,0.00019074,2]
[387185285,1758621034038,-151.0,0.00019074,2]
[387185286,1758621034048,-151.0,0.00019074,2]
[387185287,1758621034058,-151.0,0.00019074,2]
[387185288,1758621034067,-151.0,0.00019074,2]
[387185289,1758621034077,-151.0,0.00019074,2]
[387185290,1758621034086,-151.0,0.00019074,2]
[387185291,1758621034095,-151.0,0.00019074,2]
[387185292,1758621034105,-151.0,0.00019074,2]
[387185293,1758621034115,-151.0,0.00019074,2]
[387185294,1758621034124,-151.0,0.00019074,2]
[387185295,1758621034133,-151.0,0.00019074,2]
[387185296,1758621034144,-320.776388,0.00019074,2]
[387185297,1758621034153,-320.776388,0.00019074,2]
[387185298,1758621034163,-320.776388,0.00019074,2]
[387185299,1758621034173,-151.0,0.00019074,2]
[387185300,1758621034183,-320.776388,0.00019074,2]
[387185301,1758621034192,-151.0,0.00019074,2]
[387185302,1758621034203,-151.0,0.00019074,2]
[387185303,1758621034213,-151.0,0.00019074,2]
[387185304,1758621034223,-151.0,0.00019074,2]
[387185305,1758621034232,-151.0,0.00019074,2]
[387185306,1758621034241,-151.0,0.00019074,2]
[387185307,1758621034251,-151.0,0.00019074,2]
[387185308,1758621034260,-151.0,0.00019074,2]
[387185309,1758621034270,-151.0,0.00019074,2]
[387185310,1758621034280,-151.0,0.00019074,2]
[387185311,1758621034289,-151.0,0.00019074,2]
[387185312,1758621034298,-151.0,0.00019074,2]
[387185313,1758621034308,-151.0,0.00019074,2]
[387185314,1758621034317,-151.0,0.00019074,2]
[387185315,1758621034327,-151.0,0.00019074,2]
[387185316,1758621034337,-151.0,0.00019074,2]
[387185317,1758621034346,-153.41157711,0.00019074,2]
[387185318,1758621034356,-151.60425296,0.00019074,2]
[387185319,1758621034365,-151.0,0.00019074,2]
[387185320,1758621034375,-151.862509,0.00019074,2]
[387185321,1758621034384,-151.0,0.00019074,2]
[387185322,1758621034393,-151.0,0.00019074,2]
[387185323,1758621034402,-151.0,0.00019074,2]
[387185324,1758621034411,-151.0,0.00019074,2]
[387185325,1758621034420,-151.0,0.00019074,2]
[387185326,1758621034429,-151.0,0.00019074,2]
[387185327,1758621034440,-151.0,0.00019074,2]
[387185328,1758621034450,-151.0,0.00019074,2]
[387185329,1758621034459,-151.0,0.00019074,2]
[387185330,1758621034468,-151.0,0.00019074,2]
[387185331,1758621034477,-189.927928,0.00019074,2]
[387185332,1758621034487,-189.927928,0.00019074,2]
[387185333,1758621034496,-189.927928,0.00019074,2]
[387185334,1758621034580,-189.927928,0.00019074,2]
[387185335,1758621034591,-189.927928,0.00019074,2]
[387185336,1758621034600,-189.927928,0.00019074,2]
[387185337,1758621034608,-189.927928,0.00019074,2]
[387185338,1758621034617,-189.927928,0.00019074,2]
[387185339,1758621034626,-151.0,0.00019074,2]
[387185340,1758621034635,-151.0,0.00019074,2]
[387185341,1758621034644,-151.0,0.00019074,2]
[387185342,1758621034652,-151.0,0.00019074,2]
[387185343,1758621034661,-151.0,0.00019074,2]
[387185344,1758621034670,-151.0,0.00019074,2]
[387185345,1758621034679,-151.0,0.00019074,2]
[387185346,1758621034688,-151.0,0.00019074,2]
[387185347,1758621034698,-151.0,0.00019074,2]
[387185348,1758621034707,-0.65687318,0.00019074,2]
[387185366,1758621038489,-158.78223682,0.00019074,2]
[387185368,1758621038498,-151.0,0.00019074,2]
[387185370,1758621038507,-151.96718138,0.00019074,2]
[387185371,1758621038516,-151.0,0.00019074,2]
[387185373,1758621038527,-500.0,0.00019074,2]
[387185375,1758621038536,-151.0,0.00019074,2]
[387185377,1758621038546,-254.752639,0.00019074,2]
[387185379,1758621038555,-151.0,0.00019074,2]
[387185381,1758621038654,-151.0,0.00019074,2]
[387185382,1758621038664,-291.971076,0.00019074,2]
[387185383,1758621038674,-291.971076,0.00019074,2]
[387185384,1758621038683,-291.971076,0.00019074,2]
[387185385,1758621038693,-291.971076,0.00019074,2]
[387185386,1758621038703,-291.971076,0.00019074,2]
[387185387,1758621038713,-291.971076,0.00019074,2]
[387185388,1758621038723,-291.971076,0.00019074,2]
[387185389,1758621038732,-291.971076,0.00019074,2]
[387185390,1758621038742,-151.0,0.00019074,2]
[387185391,1758621038751,-151.0,0.00019074,2]
[387185392,1758621038761,-410.380294,0.00019074,2]
[387185393,1758621038770,-410.380294,0.00019074,2]
[387185394,1758621038780,-410.380294,0.00019074,2]
[387185395,1758621038789,-410.380294,0.00019074,2]
[387185396,1758621038798,-410.380294,0.00019074,2]
[387185397,1758621038807,-410.380294,0.00019074,2]
[387185398,1758621038816,-410.380294,0.00019074,2]
[387185399,1758621038825,-410.380294,0.00019074,2]
[387185400,1758621038834,-193.554955,0.00019074,2]
[387185401,1758621038843,-193.554955,0.00019074,2]
[387185402,1758621038852,-193.554955,0.00019074,2]
[387185403,1758621038861,-193.554955,0.00019074,2]
[387185404,1758621038870,-193.554955,0.00019074,2]
[387185405,1758621038879,-151.222667,0.00019074,2]
[387185406,1758621038888,-193.554955,0.00019074,2]
[387185407,1758621038898,-1038.441085,0.00019074,2]
[387185408,1758621038907,-193.554955,0.00019074,2]
[387185409,1758621038916,-1009.1385458,0.00019074,2]
[387185457,1758621040538,-29.3025392,0.00019074,2]
[387185459,1758621040548,-193.554955,0.00019074,2]
[387185461,1758621040557,-69.22250556,0.00019074,2]
[387185535,1758621043630,-1009.45,0.00019067,3]
[387185536,1758621043640,-969.21857944,0.00019074,2]
[387185537,1758621043650,-151.0,0.00019074,2]
[387185538,1758621043660,-1038.441085,0.00019074,2]
[387185539,1758621043670,-151.0,0.00019074,2]
[387185540,1758621043679,-1038.441085,0.00019074,2]
[387185541,1758621043689,-1038.441085,0.00019074,2]
[387185542,1758621043699,-151.0,0.00019074,2]
[387185543,1758621043709,-151.0,0.00019074,2]
[387185544,1758621043719,-87.28486263,0.00019074,2]
[387185545,1758621043732,-63.71513737,0.00019074,2]
[387185546,1758621043742,-151.0,0.00019074,2]
[387185547,1758621043752,-1038.441085,0.00019074,2]
[387185548,1758621043762,-724.33833962,0.00019074,2]
[387185549,1758621043779,-314.10274538,0.00019074,2]
[387185550,1758621043789,-151.0,0.00019074,2]
[387185551,1758621043799,-26.96370162,0.00019074,2]
[387185552,1758621043814,-206.83347238,0.00019074,2]
[387185553,1758621043824,-49.36652762,0.00019074,2]
[387185557,1758621045459,279.988396,0.00017979,2]
[387185621,1758621046518,-101.63347238,0.00019074,2]
[387185623,1758621046528,-152.915358,0.00019074,2]
[387185625,1758621046537,-151.0,0.00019074,2]
[387185627,1758621046547,-151.0,0.00019074,2]
[387185629,1758621046556,-151.0,0.00019074,2]
[387185631,1758621046565,-151.0,0.00019074,2]
[387185633,1758621046574,-151.0,0.00019074,2]
[387185635,1758621046583,-151.0,0.00019074,2]
[387185637,1758621046592,-151.0,0.00019074,2]
[387185639,1758621046602,-151.0,0.00019074,2]
[387185641,1758621046611,-151.0,0.00019074,2]
[387185643,1758621046621,-151.0,0.00019074,2]
[387185644,1758621046630,-151.0,0.00019074,2]
[387185645,1758621046639,-151.0,0.00019074,2]
[387185646,1758621046648,-151.0,0.00019074,2]